bitfinex/quotes_ETHUSD_20260305
["timestamp","ask_amount","ask_price","bid_price","bid_amount"]
[1772673004656,0.62287532,2139.1,2138.1,0.72951561]
[1772673004857,0.62287532,2139.1,2138.1,2.53540259]
[1772673005085,0.62287532,2139.1,2138.2,0.72951561]
[1772673005387,0.70949426,2138.9,2137.8,4.67754367]
[1772673005576,1.79159366,2139.1,2137.8,4.67754367]
[1772673005577,0.70949426,2138.7,2137.8,4.67754367]
[1772673005780,0.70949426,2139.0,2137.8,5.40951556]
[1772673006083,0.70949426,2139.0,2137.9,0.73197189]
[1772673006285,0.62287532,2139.1,2137.9,0.73197189]
[1772673006586,0.62287532,2139.1,2138.1,0.72953653]
[1772673006787,0.62287532,2139.1,2138.0,1.16931711]
[1772673006788,1.33236958,2139.1,2138.0,1.89885364]
[1772673007090,1.33236958,2139.1,2138.1,1.278]
[1772673007299,0.62287532,2139.1,2138.2,0.72710723]
[1772673007896,0.70949426,2139.0,2138.3,1.278]
[1772673008382,0.70949426,2139.0,2138.3,1.279]
[1772673008589,0.62287532,2139.1,2138.4,1.16909839]
[1772673008758,1.79159581,2139.1,2138.4,1.16909839]
[1772673008955,0.62287532,2139.1,2138.4,1.16909839]
[1772673009272,1.79159425,2139.1,2138.4,1.16909839]
[1772673009884,2.50108851,2139.1,2138.3,2.44811867]
[1772673010279,1.33236958,2139.1,2138.3,2.44811867]
[1772673010475,0.62287532,2139.1,2138.3,2.44811867]
[1772673010994,1.16811512,2140.2,2138.4,0.71985552]
[1772673011290,0.70949426,2140.1,2138.6,0.71745029]
[1772673011504,0.70949426,2140.1,2138.7,1.279]
[1772673011794,1.16811512,2140.2,2138.3,3.16556896]
[1772673011795,0.70949426,2139.9,2138.3,3.16556896]
[1772673012092,3.22323512,2140.2,2138.3,1.16911867]
[1772673012093,0.70949426,2139.7,2138.3,1.16911867]
[1772673012259,0.70949426,2139.7,2137.6,1.9027183]
[1772673012260,0.70949426,2139.5,2137.6,1.9027183]
[1772673012465,0.70949426,2139.3,2137.7,5.95685457]
[1772673012764,0.70949426,2139.1,2137.7,5.95685457]
[1772673012968,0.70949426,2138.9,2137.7,5.95685457]
[1772673013289,0.70949426,2138.9,2137.7,6.68765242]
[1772673013662,0.70949426,2138.9,2137.7,5.95685457]
[1772673014095,0.70949426,2138.9,2137.7,1.279]
[1772673014270,0.70949426,2138.7,2137.2,1.277]
[1772673014595,0.70949426,2138.7,2137.0,4.67944254]
[1772673014794,0.70949426,2138.7,2137.1,1.277]
[1772673014981,0.66267121,2138.5,2137.2,1.16975481]
[1772673015162,0.66267121,2138.5,2136.9,0.72836468]
[1772673015359,1.16898905,2138.6,2136.5,3.31035759]
[1772673015360,0.70949426,2138.3,2136.7,0.74682419]
[1772673015564,1.16898905,2138.6,2136.9,0.74682419]
[1772673015565,0.70949426,2138.5,2136.9,0.74682419]
[1772673016868,0.70949426,2138.3,2137.0,1.16986429]
[1772673017462,0.70949426,2138.3,2137.0,2.44686429]
[1772673017876,0.70949426,2138.3,2137.0,1.16986429]
[1772673018081,0.70949426,2138.3,2137.1,1.278]
[1772673019396,0.69238252,2138.1,2137.2,1.16975481]
[1772673019571,0.69238252,2138.1,2137.1,1.16976837]
[1772673019773,0.69238252,2138.1,2136.8,1.17093849]
[1772673020600,1.16920774,2138.2,2136.8,1.17097187]
[1772673020601,0.69238252,2137.7,2136.8,1.17097187]
[1772673020977,0.69238252,2137.7,2136.8,1.1709639]
[1772673021188,0.69238252,2138.1,2136.8,1.1709639]
[1772673021382,0.69238252,2138.1,2136.8,0.001]
[1772673021383,1.16931711,2138.0,2136.8,0.001]
[1772673021600,4.67639597,2138.4,2136.8,0.73525161]
[1772673021601,1.86150343,2138.4,2136.8,0.73525161]
[1772673021766,0.69238252,2138.4,2136.8,0.73525161]
[1772673021966,1.86149033,2138.4,2136.8,0.73525161]
[1772673022192,0.69238252,2138.3,2136.9,1.281]
[1772673022569,4.67639356,2138.7,2136.9,1.281]
[1772673022570,1.16887974,2138.8,2137.2,0.73425161]
[1772673022775,0.69238252,2138.7,2137.5,0.73425161]
[1772673022970,0.69238252,2138.7,2136.8,3.61436545]
[1772673022971,0.69238252,2138.7,2137.1,0.79978761]
[1772673023193,0.69238252,2138.7,2137.1,0.73425161]
[1772673023371,0.69238252,2138.5,2137.2,1.16975481]
[1772673023868,0.69238252,2138.5,2137.2,1.90400642]
[1772673024690,0.69238252,2138.5,2137.3,0.73425161]
[1772673025700,1.86142668,2138.5,2137.4,1.90389697]
[1772673026880,1.86142668,2138.5,2137.5,1.287]
[1772673027207,1.8614366,2138.5,2137.5,1.287]
[1772673027404,0.69238252,2138.5,2137.5,1.287]
[1772673027711,0.71036671,2138.8,2137.7,0.70953585]
[1772673029697,4.6749821,2139.1,2137.9,0.70953585]
[1772673029698,1.16873887,2139.1,2137.9,0.70953585]
[1772673030012,0.71036671,2139.0,2137.8,1.16942651]
[1772673030302,0.71036671,2139.0,2138.0,1.29]
[1772673031606,0.71036671,2138.8,2138.1,1.16926242]
[1772673031908,1.16882509,2138.9,2137.5,1.291]
[1772673031909,0.71036671,2138.6,2137.5,1.291]
[1772673032109,0.43512406,2138.7,2137.1,1.16978869]
[1772673032110,0.71036671,2138.4,2137.1,1.16978869]
[1772673032407,0.71036671,2138.2,2137.3,1.17069718]
[1772673032981,0.71036671,2138.2,2137.3,0.001]
[1772673033309,0.71036671,2138.2,2137.3,1.1706972]
[1772673033510,0.71036671,2138.2,2137.3,0.001]
[1772673033687,0.71036671,2138.0,2137.3,0.001]
[1772673033885,0.71036671,2138.0,2136.9,1.16991904]
[1772673034097,1.16926242,2138.1,2136.9,1.87945489]
[1772673034294,5.38741642,2138.2,2137.0,0.70953585]
[1772673034295,1.87958517,2138.2,2137.0,0.70953585]
[1772673034497,0.71036671,2138.1,2137.0,0.70953585]
[1772673034821,0.71036671,2138.1,2137.0,1.292]
[1772673036292,1.16931711,2138.0,2137.1,1.16980955]
[1772673037222,0.71036671,2137.9,2137.1,1.16980955]
[1772673038193,3.42221581,2137.9,2137.1,1.16980955]
[1772673038398,0.71036671,2137.7,2136.8,1.294]
[1772673038606,0.71036671,2137.7,2136.8,0.001]
[1772673038815,0.71036671,2137.7,2136.8,1.294]
[1772673039328,0.71036671,2137.7,2136.8,0.001]
[1772673039527,0.71036671,2137.5,2136.8,0.001]
[1772673039693,0.71036671,2137.5,2136.5,1.17013807]
[1772673040096,0.71036671,2137.5,2136.4,1.25252801]
[1772673040420,0.71036671,2137.3,2136.4,1.25252801]
[1772673041025,0.71036671,2137.3,2136.3,1.1702087]
[1772673041723,0.71036671,2137.3,2136.0,1.17041198]
[1772673042026,1.14602769,2137.2,2136.0,1.17041198]
[1772673042215,0.71036671,2137.1,2136.0,1.17041198]
[1772673042418,0.71036671,2136.9,2136.0,2.46441198]
[1772673042617,0.71036671,2136.9,2136.0,1.17041198]
[1772673044405,4.67939566,2137.2,2136.0,0.70953585]
[1772673044406,0.71036671,2137.2,2136.0,0.70953585]
[1772673044611,1.16970385,2137.3,2136.5,0.001]
[1772673044805,0.71036671,2137.5,2136.5,0.001]
[1772673045006,1.87998879,2137.5,2136.5,0.71053585]
[1772673045212,1.87998879,2137.5,2136.5,1.297]
[1772673045408,0.71036671,2137.4,2136.5,1.297]
[1772673045611,1.16962208,2137.5,2136.5,1.297]
[1772673046932,0.71036671,2137.5,2136.6,1.1700833]
[1772673048214,1.16953592,2137.7,2136.6,1.87961915]
[1772673048215,1.16951743,2137.7,2136.6,1.87961915]
[1772673048622,1.86201039,2137.7,2136.6,3.17561915]
[1772673048933,0.69249296,2137.6,2136.6,2.4660833]
[1772673049124,1.16959064,2137.5,2136.6,2.4660833]
[1772673049506,1.16959064,2137.5,2136.5,1.17110024]
[1772673049507,0.69249296,2137.4,2136.5,1.17110024]
[1772673051030,0.69249296,2137.4,2136.5,1.17111973]
[1772673051232,1.16970008,2137.3,2136.5,0.001]
[1772673051552,1.86214231,2137.4,2136.5,0.001]
[1772673052940,0.69249296,2137.7,2136.5,0.66462862]
[1772673053142,0.69249296,2137.5,2136.5,0.001]
[1772673053312,0.69249296,2137.3,2136.5,0.001]
[1772673054745,0.69249296,2137.3,2136.3,0.001]
[1772673054916,0.69249296,2137.1,2136.3,0.001]
[1772673055338,0.69249296,2136.9,2136.3,0.001]
[1772673057619,1.16997379,2136.8,2136.3,0.001]
[1772673058649,1.16993665,2136.9,2136.3,0.001]
[1772673059218,1.16993665,2136.9,2136.5,0.001]
[1772673060137,1.16980955,2137.1,2136.5,0.001]
[1772673060460,0.69249296,2136.7,2135.9,0.001]
[1772673060681,0.69249296,2136.7,2135.7,0.001]
[1772673060682,0.69249296,2136.4,2135.7,0.001]
[1772673060954,0.69249296,2136.4,2134.8,0.001]
[1772673060955,0.69249296,2136.1,2134.8,0.001]
[1772673061119,0.69249296,2135.8,2134.8,0.001]
[1772673061319,2.54196668,2135.9,2134.8,0.001]
[1772673061320,1.12800107,2135.7,2134.8,1.17206206]
[1772673061549,0.69249296,2135.7,2134.8,0.001]
[1772673062448,1.1706312,2135.6,2134.8,0.001]
[1772673062741,0.69249296,2135.5,2134.8,0.001]
[1772673063131,1.17060816,2135.7,2134.8,0.001]
[1772673063326,1.17060816,2135.7,2134.8,0.66462862]
[1772673064738,1.17060816,2135.7,2134.8,1.83565685]
[1772673067227,1.17060816,2135.7,2134.9,0.66362862]
[1772673067827,1.86290494,2136.0,2134.9,0.66362862]
[1772673068028,1.17041198,2136.0,2134.9,0.66362862]
[1772673068325,1.86290494,2136.0,2134.9,1.95162862]
[1772673068553,1.86290494,2136.0,2135.0,0.66362862]
[1772673068554,1.17041198,2136.0,2135.0,0.66362862]
[1772673069726,1.86279536,2136.2,2135.1,1.83453396]
[1772673071160,0.69249296,2135.7,2134.8,0.001]
[1772673071458,0.69249296,2135.5,2134.5,0.001]
[1772673071763,0.69249296,2135.3,2134.5,0.001]
[1772673072126,0.69249296,2135.3,2135.0,0.001]
[1772673072325,0.69249296,2135.3,2134.5,0.001]
[1772673072858,0.69249296,2135.3,2134.8,0.001]
[1772673073746,4.68296337,2135.5,2134.8,0.001]
[1772673074154,1.17067415,2135.6,2134.8,0.001]
[1772673076462,4.68231016,2135.7,2134.8,1.17206988]
[1772673076635,5.37480312,2135.7,2134.8,1.17206988]
[1772673078455,4.68231016,2135.7,2134.8,1.17206988]
[1772673078659,0.66245115,2135.6,2134.8,0.001]
[1772673078864,0.66245115,2135.6,2134.5,0.001]
[1772673079539,0.66245115,2135.4,2134.5,0.001]
[1772673080561,0.66245115,2135.2,2134.5,0.001]
[1772673081971,1.17079567,2135.3,2134.5,0.001]
[1772673081972,0.66245115,2135.0,2134.5,0.001]
[1772673082667,0.66245115,2134.8,2134.3,0.001]
[1772673083171,0.66245115,2134.8,2133.5,0.001]
[1772673083172,0.66245115,2134.6,2133.5,0.001]
[1772673083355,0.66245115,2134.4,2133.5,0.001]
[1772673084071,0.66245115,2134.2,2133.3,0.001]
[1772673084258,2.66589721,2134.3,2133.3,0.001]
[1772673084259,0.66245115,2134.0,2133.3,0.001]
[1772673084459,1.503,2134.3,2133.3,0.001]
[1772673084460,0.66245115,2133.8,2133.3,0.001]
[1772673084768,0.66245115,2133.8,2133.0,0.001]
[1772673084769,0.66245115,2133.6,2133.0,0.001]
[1772673086567,1.17178345,2133.5,2133.0,0.001]
[1772673086773,1.1716187,2133.8,2133.0,0.001]
[1772673087676,0.63449119,2133.7,2133.0,0.001]
[1772673088769,1.17172853,2133.6,2133.0,0.001]
[1772673089562,2.56321233,2133.9,2133.0,0.001]
[1772673089563,4.68633818,2133.9,2133.0,0.001]
[1772673089764,4.68633818,2133.9,2133.0,0.64244002]
[1772673090306,5.32082937,2133.9,2133.0,0.64244002]
[1772673090664,1.503,2134.3,2133.0,0.64244002]
[1772673090665,1.17139911,2134.2,2133.2,0.64144002]
[1772673092082,1.17137284,2134.3,2133.3,0.64144002]
[1772673092798,4.6852676,2134.4,2133.4,1.17183838]
[1772673093280,0.63449119,2134.2,2133.0,0.001]
[1772673093947,0.63449119,2134.2,2133.0,1.17305271]
[1772673094161,0.63449119,2134.2,2133.1,0.64144002]
[1772673094765,4.68511018,2134.5,2133.3,0.64144002]
[1772673094987,5.31960137,2134.5,2133.3,0.64144002]
[1772673095893,0.63449119,2134.4,2133.3,0.64144002]
[1772673096792,1.80583542,2134.3,2133.4,1.17183838]
[1772673096963,4.68511018,2134.5,2133.5,0.63743202]
[1772673096964,1.17123448,2134.5,2133.5,0.63743202]
[1772673097690,7.26843456,2134.9,2133.5,0.63743202]
[1772673097691,4.68433846,2134.8,2133.5,0.63743202]
[1772673098097,5.31882965,2134.8,2133.5,0.63743202]
[1772673098707,0.63449119,2134.8,2133.5,0.63743202]
[1772673098865,1.8056049,2134.8,2133.7,0.63328182]
[1772673099065,1.80543762,2135.1,2133.9,0.63121419]
[1772673099266,1.17090735,2135.1,2133.9,0.63121419]
[1772673099690,0.002,2134.6,2133.9,0.63121419]
[1772673100591,0.002,2134.6,2134.1,0.62915151]
[1772673100893,0.002,2134.6,2134.2,1.17139911]
[1772673101271,0.002,2134.6,2134.1,1.17141107]
[1772673103102,0.63449119,2134.2,2133.0,0.001]
[1772673103303,0.63449119,2134.0,2133.2,0.001]
[1772673103816,0.70002719,2134.4,2133.2,1.17293388]
[1772673103986,0.63449119,2134.2,2133.2,0.001]
[1772673105086,2.24082787,2134.1,2133.2,0.001]
[1772673105341,1.80594519,2134.1,2133.2,0.001]
[1772673106481,0.63449119,2134.0,2133.2,0.001]
[1772673107190,1.1715638,2133.9,2133.2,0.001]
[1772673108877,0.6230292,2133.7,2133.2,0.001]
[1772673109080,1.17172853,2133.6,2133.2,0.001]
[1772673109327,1.79475773,2133.6,2133.2,0.001]
[1772673110187,1.79475773,2133.6,2133.0,0.001]
[1772673111912,0.6230292,2133.4,2133.0,0.001]
[1772673113192,1.17189331,2133.3,2133.0,0.001]
[1772673114511,1.17189331,2133.3,2133.1,0.001]
[1772673115011,0.002,2133.5,2133.1,0.001]
[1772673120014,0.002,2133.5,2133.1,0.59291116]
[1772673120911,0.002,2133.5,2133.1,0.001]
[1772673121086,0.002,2133.5,2133.1,1.281]
[1772673121483,0.002,2133.7,2133.3,0.58598245]
[1772673123515,1.17134423,2134.3,2133.4,1.17183838]
[1772673123704,1.79437343,2134.3,2133.4,1.17183838]
[1772673124124,1.79437343,2134.3,2133.5,1.85923781]
[1772673124837,4.68525018,2134.4,2133.6,0.58023781]
[1772673124838,1.17131464,2134.4,2133.6,0.58023781]
[1772673125636,0.6230292,2134.4,2133.7,1.17167361]
[1772673125934,0.6230292,2134.4,2133.7,1.74996759]
[1772673126231,0.002,2134.6,2133.8,0.57635473]
[1772673126625,0.6250292,2134.6,2133.8,0.57635473]
[1772673127607,1.17123448,2134.5,2133.8,1.7479552]
[1772673128413,0.6230292,2134.4,2133.7,1.1716385]
[1772673128809,0.6230292,2134.4,2133.8,1.278]
[1772673129639,1.17134423,2134.3,2133.8,1.278]
[1772673129838,1.17134423,2134.3,2133.7,1.1726385]
[1772673130141,1.17334423,2134.3,2133.7,2.4506385]
[1772673132966,0.002,2134.5,2133.8,0.56481481]
[1772673133330,4.68399234,2135.0,2133.8,0.56481481]
[1772673133331,0.002,2135.1,2133.8,0.56290729]
[1772673133564,0.002,2135.4,2133.8,0.56290729]
[1772673133565,0.002,2135.4,2134.2,0.56290729]
[1772673133763,0.002,2135.4,2134.1,2.60501084]
[1772673133764,0.002,2135.4,2135.0,0.56290729]
[1772673133940,1e-08,2135.6,2135.1,1.276]
[1772673134145,0.002,2135.9,2135.2,0.56129631]
[1772673134341,0.002,2135.9,2135.3,1.277]
[1772673134650,0.002,2135.9,2135.2,0.56129631]
[1772673134855,0.6250292,2135.9,2135.3,1.277]
[1772673135163,0.6250292,2135.9,2134.9,1.73231134]
[1772673135463,0.6250292,2135.9,2134.9,1.277]
[1772673136045,1.79355078,2135.8,2135.0,1.17096018]
[1772673137677,0.002,2135.9,2135.1,0.5557279]
[1772673138129,0.002,2135.9,2135.2,1.1708505]
[1772673138963,1.80208034,2136.5,2135.3,0.55384143]
[1772673140464,1.80208034,2136.5,2135.5,0.54814049]
[1772673140650,1.80208034,2136.5,2135.6,1.277]
[1772673140854,0.63193516,2136.4,2135.4,2.44774084]
[1772673141364,0.63193516,2136.4,2135.5,0.54626728]
[1772673143586,1.80217181,2136.4,2135.6,1.1706312]
[1772673145076,0.002,2136.3,2135.6,1.1706312]
[1772673147271,0.61695245,2136.3,2135.6,1.1706312]
[1772673147992,1.78722957,2136.3,2135.6,1.1706312]
[1772673148276,0.61495245,2136.2,2135.5,1.17168577]
[1772673151104,1.17227712,2136.3,2135.5,1.17168577]
[1772673151105,0.002,2136.3,2135.6,0.52777364]
[1772673151378,0.002,2136.8,2135.6,0.52577364]
[1772673151538,0.31699368,2137.8,2136.4,0.52577364]
[1772673151743,3.32680155,2137.9,2136.6,0.52577364]
[1772673151744,0.61495245,2137.9,2136.6,0.52577364]
[1772673151943,4.67696583,2138.2,2136.6,0.52577364]
[1772673151944,0.002,2137.8,2136.6,0.52577364]
[1772673152182,0.61695245,2138.1,2136.6,0.52577364]
[1772673152491,0.61695245,2138.1,2136.8,0.52485126]
[1772673152849,0.002,2138.1,2136.8,0.52485126]
[1772673153060,0.002,2138.1,2137.0,0.52302746]
[1772673155264,0.002,2138.1,2137.2,0.51939254]
[1772673155648,0.61495245,2138.8,2137.2,0.51939254]
[1772673155853,0.002,2138.7,2137.4,0.51939254]
[1772673156080,0.61495245,2139.1,2137.6,0.51939254]
[1772673156282,0.002,2139.0,2137.6,0.51939254]
[1772673156786,0.002,2139.0,2137.8,0.51758139]
[1772673157278,0.002,2139.0,2138.0,1.16931711]
[1772673157279,1.78574204,2139.0,2138.0,1.16931711]
[1772673157670,0.61695245,2139.0,2138.0,1.16931711]
[1772673158067,0.61695245,2139.0,2138.0,1.68509155]
[1772673158271,1.78573371,2139.0,2138.0,1.68509155]
[1772673158453,1.78373371,2139.0,2138.0,1.68509155]
[1772673158652,1.78373371,2139.0,2138.1,1.27]
[1772673158958,0.002,2138.1,2138.0,2.43931711]
[1772673159162,0.61695245,2138.9,2138.0,2.43931711]
[1772673159956,0.002,2138.4,2138.0,1.68149019]
[1772673160157,0.002,2138.9,2138.1,1.77843705]
[1772673160884,0.61495245,2140.1,2138.2,0.50843705]
[1772673161091,0.61495245,2140.9,2138.4,0.50843705]
[1772673161389,0.61495245,2140.7,2139.4,0.50670502]
[1772673161695,0.61495245,2140.7,2139.5,1.271]
[1772673161908,0.61495245,2140.7,2139.6,0.50670502]
[1772673162399,0.61495245,2140.7,2139.7,1.272]
[1772673163320,1.4007685,2141.7,2140.0,0.5031975]
[1772673163321,1.78233645,2141.6,2140.0,0.5031975]
[1772673163498,0.61495245,2142.5,2140.8,0.5031975]
[1772673163796,0.61495245,2142.5,2140.3,1.16806055]
[1772673163797,0.61495245,2142.5,2140.4,0.5031975]
[1772673164003,0.61495245,2142.3,2140.5,1.273]
[1772673164312,0.61495245,2141.7,2140.1,1.273]
[1772673164599,0.61495245,2141.2,2139.8,0.10434462]
[1772673165604,0.61495245,2141.2,2139.5,3.71648583]
[1772673165605,0.61495245,2141.0,2139.6,1.24677482]
[1772673165769,0.61495245,2141.0,2139.7,0.07833258]
[1772673166608,0.61495245,2140.6,2139.4,0.06954899]
[1772673167412,0.61495245,2140.4,2139.4,0.06954899]
[1772673168394,0.61495245,2140.4,2139.4,1.23810035]
[1772673168594,1.78277163,2140.8,2139.5,0.57496068]
[1772673169164,0.57285003,2140.7,2139.4,1.23810035]
[1772673169370,1.16789685,2140.6,2139.4,1.23810035]
[1772673169977,1.16789685,2140.6,2139.4,2.50510035]
[1772673170186,1.16789685,2140.6,2139.5,1.268]
[1772673171605,1.16789685,2140.6,2139.6,1.16844269]
[1772673172398,1.16789685,2140.6,2139.6,1.16944269]
[1772673172576,0.002,2140.5,2139.6,1.16944269]
[1772673172971,0.57485003,2140.5,2139.6,0.001]
[1772673173708,1.16800598,2140.4,2139.6,0.001]
[1772673174080,1.742833,2140.5,2139.6,0.001]
[1772673174284,1.16998297,2140.5,2139.6,0.001]
[1772673174488,0.002,2140.5,2139.6,0.001]
[1772673174882,1.1699529,2140.5,2139.6,0.001]
[1772673175387,1.74280293,2140.5,2139.6,0.001]
[1772673175795,1.74280293,2140.5,2139.6,0.01433869]
[1772673176301,1.74280293,2140.5,2139.7,1.16838809]
[1772673176517,0.57285003,2140.3,2139.4,0.00827199]
[1772673176680,0.57285003,2140.3,2139.1,1.17739966]
[1772673177009,0.57285003,2140.3,2139.2,4.67486663]
[1772673177394,0.57285003,2140.3,2139.3,4.67386663]
[1772673177977,0.57285003,2140.3,2139.4,0.001]
[1772673178181,0.57285003,2139.8,2139.1,0.001]
[1772673178491,0.57285003,2139.6,2139.1,4.67486663]
[1772673178686,0.57285003,2139.6,2139.1,0.001]
[1772673179404,1.16838809,2139.7,2139.1,0.001]
[1772673179601,1.16838809,2139.7,2139.2,4.67386663]
[1772673180541,1.74123812,2139.7,2139.2,4.67386663]
[1772673182142,0.57285003,2139.6,2139.1,0.001]
[1772673182302,1.74134734,2139.5,2139.1,4.67486663]
[1772673182506,1.16849731,2139.5,2139.2,4.67386663]
[1772673182933,1.16849731,2139.5,2139.1,0.001]
[1772673182934,1.74134734,2139.5,2139.1,0.001]
[1772673183232,1.74134734,2139.5,2138.7,1.16889819]
[1772673184435,1.74134734,2139.5,2138.6,4.67831998]
[1772673185639,1.16849645,2139.6,2138.6,5.26481916]
[1772673186263,1.16849645,2139.6,2138.7,1.272]
[1772673186427,5.24620218,2139.8,2138.7,1.272]
[1772673186635,1.16832509,2139.9,2138.8,1.75537892]
[1772673186957,1.16832509,2139.9,2138.9,0.58649918]
[1772673187467,1.16832509,2139.9,2138.9,0.58749918]
[1772673187773,1.74117512,2139.9,2138.9,0.58749918]
[1772673188126,1.74117512,2139.9,2139.0,1.272]
[1772673188127,0.57285003,2139.8,2139.0,1.272]
[1772673188834,1.74118562,2139.8,2139.1,1.16871581]
[1772673189758,0.57285003,2139.8,2139.1,1.16871581]
[1772673189928,1.74118559,2139.8,2139.1,1.16871581]
[1772673190764,1.74120357,2139.8,2139.1,1.16871581]
[1772673191128,0.57285003,2139.7,2138.9,1.16978145]
[1772673191329,0.57285003,2139.7,2138.9,2.44078145]
[1772673192056,0.57285003,2139.7,2138.9,1.16978145]
[1772673193037,1.16844269,2139.6,2138.9,1.271]
[1772673193850,0.57285003,2139.5,2138.9,0.001]
[1772673195270,1.16855193,2139.4,2138.9,0.001]
[1772673196663,1.16842494,2139.7,2138.9,0.001]
[1772673197968,1.74127497,2139.7,2138.9,0.001]
[1772673198171,0.57285003,2139.6,2138.9,0.001]
[1772673198371,0.57285003,2139.4,2138.9,0.001]
[1772673199887,1.16866118,2139.2,2138.9,0.001]
[1772673200200,1.85606571,2139.2,2138.9,0.001]
[1772673200517,1.16858367,2139.4,2138.9,0.001]
[1772673201298,0.43593434,2139.3,2138.9,0.001]
[1772673201473,0.68740453,2139.3,2138.6,0.00346642]
[1772673201673,0.68740453,2139.1,2138.6,0.00346642]
[1772673201990,1.16877045,2139.0,2138.9,0.001]
[1772673202761,1.16877045,2139.0,2138.6,0.00346642]
[1772673202762,1.60490134,2139.0,2138.6,0.00346642]
[1772673203058,0.68740453,2138.9,2138.4,0.001]
[1772673203175,1.16877045,2139.0,2137.7,1.16943946]
[1772673203176,0.68740453,2138.7,2137.7,1.16943946]
[1772673203379,0.68740453,2138.5,2137.7,1.16943946]
[1772673203562,0.43619205,2138.4,2137.7,1.16943946]
[1772673203762,0.43612834,2138.3,2137.7,1.16943946]
[1772673203994,0.68740453,2138.5,2137.7,1.16943946]
[1772673204292,0.43613853,2138.4,2137.7,1.16943946]
[1772673204466,1.85647469,2138.5,2137.7,1.16943946]
[1772673204662,0.68740453,2138.5,2137.7,1.16943946]
[1772673204979,6.86226145,2139.2,2137.8,0.70595228]
[1772673204980,1.85632318,2138.8,2137.8,0.70595228]
[1772673205194,0.43581019,2138.7,2137.8,0.70595228]
[1772673205503,0.43581019,2138.6,2137.8,0.70595228]
[1772673205709,1.85632318,2138.8,2137.8,0.70595228]
[1772673206023,0.43576522,2138.7,2137.8,0.70595228]
[1772673206176,2.23057674,2139.7,2138.2,0.70595228]
[1772673206503,1.85574004,2139.8,2138.7,0.69348183]
[1772673206872,1.16833551,2139.8,2138.7,0.69348183]
[1772673207094,0.69875117,2139.7,2138.6,2.15420811]
[1772673207293,0.69875117,2139.7,2138.6,1.266]
[1772673208204,1.86719386,2139.6,2138.7,1.16893439]
[1772673209202,1.16844269,2139.6,2138.7,1.16893439]
[1772673209380,1.86719386,2139.6,2138.7,1.16893439]
[1772673210117,1.18690085,2140.5,2139.2,0.69348183]
[1772673210285,1.16751506,2141.3,2139.5,0.69348183]
[1772673210478,0.69875117,2141.2,2139.7,0.69348183]
[1772673210702,0.69875117,2141.2,2139.4,3.23131216]
[1772673210703,0.69875117,2140.8,2139.4,2.84768994]
[1772673211026,0.69875117,2140.8,2139.5,0.69348183]
[1772673211231,0.69875117,2140.8,2139.6,1.265]
[1772673211416,0.69875117,2140.8,2139.5,0.69348183]
[1772673211624,0.69875117,2140.8,2139.6,1.265]
[1772673212332,1.86659346,2140.7,2139.7,1.16838809]
[1772673212735,0.69875117,2140.7,2139.7,1.16838809]
[1772673213738,0.69875117,2140.7,2139.8,1.265]
[1772673214242,0.69875117,2140.7,2139.7,1.16838809]
[1772673214243,1.16789685,2140.6,2139.7,2.43438809]
[1772673214602,4.67101958,2140.9,2139.7,3.12786992]
[1772673214921,5.36977075,2140.9,2139.7,3.12786992]
[1772673215115,0.69875117,2140.8,2139.5,1.16849731]
[1772673215310,0.69875117,2140.8,2139.7,1.266]
[1772673215519,0.002,2140.4,2139.7,1.266]
[1772673216202,0.002,2140.4,2139.8,1.16833348]
[1772673216949,0.89980716,2140.7,2139.9,0.69348183]
[1772673217150,0.69875117,2141.4,2140.1,0.69348183]
[1772673217462,0.69875117,2141.6,2140.2,0.69348183]
[1772673217606,0.69875117,2141.6,2140.0,1.266]
[1772673218129,0.69875117,2141.4,2139.8,0.69348183]
[1772673218326,0.69875117,2140.9,2139.8,1.266]
[1772673220871,0.69875117,2140.9,2139.9,1.16827889]
[1772673221171,1.86648541,2140.9,2139.9,1.16827889]
[1772673221330,0.69875117,2140.9,2139.9,1.16827889]
[1772673222362,0.69875117,2140.9,2139.9,1.86176072]
[1772673222866,1.86648523,2140.9,2139.9,1.86176072]
[1772673223641,0.69875117,2140.8,2140.0,1.266]
[1772673223837,0.69875117,2140.8,2139.7,1.266]
[1772673224459,0.69875117,2140.6,2139.2,2.43466118]
[1772673224850,0.69875117,2140.2,2139.2,2.43466118]
[1772673226261,0.69875117,2140.2,2139.2,1.16866118]
[1772673226856,0.69875117,2140.0,2139.1,4.67564472]
[1772673227738,4.671447,2140.7,2139.2,0.69348183]
[1772673228041,0.69875117,2140.8,2139.2,0.69348183]
[1772673228231,0.69875117,2140.5,2139.1,4.67564472]
[1772673228433,0.69875117,2140.5,2139.1,5.94064472]
[1772673228663,0.69875117,2140.5,2139.2,0.78185807]
[1772673229040,0.81525708,2140.8,2139.4,0.78185807]
[1772673229257,0.81525708,2140.8,2139.4,0.78285807]
[1772673229437,0.002,2140.4,2139.4,0.78285807]
[1772673232766,0.002,2140.4,2139.6,0.78185807]
[1772673232966,0.002,2140.4,2139.5,1.16849731]
[1772673232967,0.81725708,2140.4,2139.5,1.16849731]
[1772673234650,0.81725708,2140.4,2139.5,1.95035538]
[1772673234878,1.98530489,2140.4,2139.5,1.95035538]
[1772673235846,0.002,2140.4,2139.5,1.95035538]
[1772673236264,0.002,2140.4,2139.6,0.78185807]
[1772673237076,0.002,2140.4,2139.7,1.95024616]
[1772673237272,0.002,2140.4,2139.8,0.78185807]
[1772673237446,0.002,2140.4,2139.9,0.78185807]
[1772673237651,0.002,2140.6,2139.9,0.78185807]
[1772673238969,0.002,2140.6,2140.0,1.16822429]
[1772673240362,0.81725708,2140.6,2139.9,1.16824416]
[1772673240981,1.98518967,2140.6,2139.7,4.67311556]
[1772673241184,1.98518967,2140.6,2139.8,1.26]
[1772673241796,0.81525708,2140.4,2139.4,1.16954723]
[1772673241988,0.81525708,2140.2,2139.4,1.16954723]
[1772673242192,0.81525708,2140.0,2139.4,1.16954723]
[1772673242571,0.81525708,2139.8,2139.1,1.16968812]
[1772673243117,1.98342557,2140.2,2139.1,1.95157021]
[1772673243411,0.81525708,2140.0,2139.1,1.16971214]
[1772673243579,0.43533612,2139.9,2139.1,1.16971214]
[1772673243788,0.81525708,2140.0,2139.1,1.16971214]
[1772673243998,1.2505932,2139.9,2139.1,1.16971214]
[1772673244197,0.81525708,2139.9,2139.1,1.16971214]
[1772673245188,0.81525708,2139.9,2139.1,0.001]
[1772673245189,1.98359056,2139.8,2139.1,0.001]